[Event "Titled Tuesday Blitz June 20 Early 2023"]
[White "Corredor Castellanos, Camilo"]
[Black "Zaichenko, Daria"]
[WhiteFideId "4425871"]
[BlackFideId "4197453"]
[WhiteElo "1994"]
[BlackElo "2039"]
[Result "1-0"]
[Round "7"]
[TimeControl "180+2"]
[Date "2023.06.20"]
[WhiteClock "0:00:34"]
[BlackClock "0:00:17"]
[Board "151"]

1. e4 {[%clk 0:03:00]}  c5 {[%clk 0:02:59]} 2. Nf3 {[%clk 0:03:01]}  Nc6 {[%clk 0:02:58]} 3. Nc3 {[%clk 0:02:57]}  g6 {[%clk 0:02:53]} 4. d4 {[%clk 0:02:44]}  cxd4 {[%clk 0:02:52]} 5. Nxd4 {[%clk 0:02:44]}  Bg7 {[%clk 0:02:52]} 6. Be3 {[%clk 0:02:44]}  d6 {[%clk 0:02:39]} 7. Be2 {[%clk 0:02:41]}  Nf6 {[%clk 0:02:35]} 8. h3 {[%clk 0:02:41]}  O-O {[%clk 0:02:35]} 9. O-O {[%clk 0:02:41]}  Bd7 {[%clk 0:02:26]} 10. f4 {[%clk 0:02:23]}  e5 {[%clk 0:02:21]} 11. Ndb5 {[%clk 0:02:16]}  exf4 {[%clk 0:02:03]} 12. Bxf4 {[%clk 0:02:14]}  Ne5 {[%clk 0:02:02]} 13. Qxd6 {[%clk 0:02:10]}  Bxb5 {[%clk 0:01:51]} 14. Qxd8 {[%clk 0:02:05]}  Rfxd8 {[%clk 0:01:48]} 15. Bxb5 {[%clk 0:01:58]}  Nfd7 {[%clk 0:01:40]} 16. Nd5 {[%clk 0:01:54]}  Nc5 {[%clk 0:01:36]} 17. Rae1 {[%clk 0:01:44]}  f6 {[%clk 0:01:08]} 18. b4 {[%clk 0:01:08]}  Nxe4 {[%clk 0:01:03]} 19. Bxe5 {[%clk 0:01:04]}  Nd2 {[%clk 0:00:51]} 20. Nxf6+ {[%clk 0:00:58]}  Bxf6 {[%clk 0:00:34]} 21. Rxf6 {[%clk 0:00:56]}  Re8 {[%clk 0:00:28]} 22. Rd6 {[%clk 0:00:48]}  Red8 {[%clk 0:00:22]} 23. Rd1 {[%clk 0:00:34]}  Rxd6 {[%clk 0:00:20]} 24. Bxd6 {[%clk 0:00:35]}  Ne4 {[%clk 0:00:20]} 25. Bc4+ {[%clk 0:00:35]}  Kg7 {[%clk 0:00:19]} 26. Be5+ {[%clk 0:00:36]}  Kh6 {[%clk 0:00:19]} 27. Rd4 {[%clk 0:00:34]}  Ng5 {[%clk 0:00:17]} 28. Rh4# {[%clk 0:00:34]} 1-0


[Site "https://www.chess.com"]

[Event "Titled Tuesday Blitz June 20 Early 2023"]
[White "KorolDimitriy75"]
[Black "Tuleyeva-Aketayeva, Dana"]
[BlackFideId "13701932"]
[WhiteElo "2421"]
[BlackElo "2030"]
[Result "0-1"]
[Round "7"]
[TimeControl "180+2"]
[Date "2023.06.20"]
[WhiteClock "0:00:00"]
[BlackClock "0:00:16"]
[Board "152"]

1. d4 {[%clk 0:03:00]}  Nf6 {[%clk 0:02:59]} 2. c4 {[%clk 0:03:01]}  e6 {[%clk 0:03:00]} 3. Nc3 {[%clk 0:03:01]}  Bb4 {[%clk 0:03:00]} 4. Qc2 {[%clk 0:03:01]}  d5 {[%clk 0:02:59]} 5. cxd5 {[%clk 0:03:01]}  Nxd5 {[%clk 0:02:58]} 6. Nf3 {[%clk 0:02:57]}  O-O {[%clk 0:02:56]} 7. e4 {[%clk 0:02:54]}  Nxc3 {[%clk 0:02:50]} 8. bxc3 {[%clk 0:02:55]}  Be7 {[%clk 0:02:50]} 9. Bd3 {[%clk 0:02:54]}  g6 {[%clk 0:02:48]} 10. O-O {[%clk 0:02:52]}  b6 {[%clk 0:02:46]} 11. Bh6 {[%clk 0:02:49]}  Re8 {[%clk 0:02:46]} 12. Rad1 {[%clk 0:02:45]}  Bb7 {[%clk 0:02:46]} 13. Rfe1 {[%clk 0:02:37]}  Nd7 {[%clk 0:02:45]} 14. Qd2 {[%clk 0:02:31]}  c5 {[%clk 0:02:33]} 15. Qf4 {[%clk 0:02:18]}  cxd4 {[%clk 0:02:31]} 16. cxd4 {[%clk 0:02:18]}  Qb8 {[%clk 0:02:23]} 17. Qg4 {[%clk 0:01:35]}  Nf6 {[%clk 0:02:19]} 18. Qh3 {[%clk 0:01:32]}  Bc8 {[%clk 0:02:00]} 19. Ne5 {[%clk 0:00:43]}  Qb7 {[%clk 0:01:27]} 20. Bb5 {[%clk 0:00:18]}  Nd7 {[%clk 0:01:25]} 21. Bc6 {[%clk 0:00:17]}  Qb8 {[%clk 0:01:22]} 22. Nxd7 {[%clk 0:00:15]}  Bxd7 {[%clk 0:01:20]} 23. Bxa8 {[%clk 0:00:15]}  Qxa8 {[%clk 0:01:20]} 24. Bf4 {[%clk 0:00:15]}  Bc6 {[%clk 0:01:17]} 25. Qe3 {[%clk 0:00:14]}  Ba4 {[%clk 0:01:14]} 26. Rc1 {[%clk 0:00:14]}  Bb4 {[%clk 0:01:13]} 27. Re2 {[%clk 0:00:14]}  Rc8 {[%clk 0:01:10]} 28. h3 {[%clk 0:00:13]}  Qb7 {[%clk 0:00:59]} 29. Be5 {[%clk 0:00:10]}  Qd7 {[%clk 0:00:38]} 30. Kh2 {[%clk 0:00:08]}  a5 {[%clk 0:00:25]} 31. Qh6 {[%clk 0:00:07]}  Bf8 {[%clk 0:00:24]} 32. Rxc8 {[%clk 0:00:07]}  Qxc8 {[%clk 0:00:25]} 33. Qg5 {[%clk 0:00:07]}  Bg7 {[%clk 0:00:17]} 34. Bxg7 {[%clk 0:00:06]}  Kxg7 {[%clk 0:00:18]} 35. Qe5+ {[%clk 0:00:06]}  Kg8 {[%clk 0:00:18]} 36. Re3 {[%clk 0:00:05]}  b5 {[%clk 0:00:17]} 37. d5 {[%clk 0:00:04]}  b4 {[%clk 0:00:15]} 38. dxe6 {[%clk 0:00:03]}  Qxe6 {[%clk 0:00:15]} 39. Qxe6 {[%clk 0:00:03]}  fxe6 {[%clk 0:00:16]} 40. Kg3 {[%clk 0:00:03]}  Bc2 {[%clk 0:00:15]} 41. Re2 {[%clk 0:00:02]}  Bd3 {[%clk 0:00:15]} 42. Re3 {[%clk 0:00:02]}  Bc4 {[%clk 0:00:16]} 43. a3 {[%clk 0:00:00]}  b3 {[%clk 0:00:16]} 0-1


[Site "https://www.chess.com"]

[Event "Titled Tuesday Blitz June 20 Early 2023"]
[White "le-castor-faineant"]
[Black "Slavin, Alexey"]
[BlackFideId "24104388"]
[WhiteElo "2161"]
[BlackElo "2264"]
[Result "0-1"]
[Round "7"]
[TimeControl "180+2"]
[Date "2023.06.20"]
[WhiteClock "0:00:02"]
[BlackClock "0:00:55"]
[Board "159"]

1. e4 {[%clk 0:03:00]}  Nc6 {[%clk 0:02:57]} 2. Nf3 {[%clk 0:03:00]}  d6 {[%clk 0:02:57]} 3. d4 {[%clk 0:02:59]}  Nf6 {[%clk 0:02:57]} 4. Nc3 {[%clk 0:02:57]}  Bg4 {[%clk 0:02:58]} 5. Bc4 {[%clk 0:02:57]}  e5 {[%clk 0:02:58]} 6. dxe5 {[%clk 0:02:54]}  dxe5 {[%clk 0:02:57]} 7. Qxd8+ {[%clk 0:02:54]}  Rxd8 {[%clk 0:02:56]} 8. Bg5 {[%clk 0:02:52]}  Bb4 {[%clk 0:02:55]} 9. O-O {[%clk 0:02:43]}  Bxf3 {[%clk 0:02:52]} 10. gxf3 {[%clk 0:02:39]}  Nd4 {[%clk 0:02:50]} 11. Kg2 {[%clk 0:02:26]}  c6 {[%clk 0:02:39]} 12. Bb3 {[%clk 0:02:22]}  h6 {[%clk 0:02:28]} 13. Be3 {[%clk 0:02:13]}  Bxc3 {[%clk 0:02:18]} 14. bxc3 {[%clk 0:02:13]}  Nxb3 {[%clk 0:02:15]} 15. cxb3 {[%clk 0:02:12]}  b6 {[%clk 0:02:09]} 16. Rfd1 {[%clk 0:02:11]}  Ke7 {[%clk 0:02:09]} 17. Kf1 {[%clk 0:02:09]}  Rxd1+ {[%clk 0:02:08]} 18. Rxd1 {[%clk 0:02:10]}  Rd8 {[%clk 0:02:08]} 19. Rxd8 {[%clk 0:02:10]}  Kxd8 {[%clk 0:02:08]} 20. Ke2 {[%clk 0:02:09]}  Kd7 {[%clk 0:02:09]} 21. Kd3 {[%clk 0:02:09]}  Ke6 {[%clk 0:02:09]} 22. f4 {[%clk 0:02:10]}  Nd7 {[%clk 0:02:04]} 23. fxe5 {[%clk 0:02:06]}  Nxe5+ {[%clk 0:02:04]} 24. Ke2 {[%clk 0:02:06]}  g5 {[%clk 0:02:01]} 25. h3 {[%clk 0:02:03]}  f5 {[%clk 0:02:00]} 26. f3 {[%clk 0:01:56]}  c5 {[%clk 0:01:50]} 27. Bc1 {[%clk 0:01:42]}  Ng6 {[%clk 0:01:45]} 28. c4 {[%clk 0:01:29]}  Ke5 {[%clk 0:01:30]} 29. exf5 {[%clk 0:01:22]}  Kxf5 {[%clk 0:01:29]} 30. Kf2 {[%clk 0:01:17]}  Nf4 {[%clk 0:01:22]} 31. Bxf4 {[%clk 0:00:26]}  Kxf4 {[%clk 0:01:22]} 32. Kg2 {[%clk 0:00:24]}  Ke3 {[%clk 0:01:04]} 33. Kg3 {[%clk 0:00:23]}  h5 {[%clk 0:01:04]} 34. a3 {[%clk 0:00:16]}  a6 {[%clk 0:00:58]} 35. a4 {[%clk 0:00:13]}  a5 {[%clk 0:00:58]} 36. Kg2 {[%clk 0:00:12]}  h4 {[%clk 0:00:56]} 37. Kh2 {[%clk 0:00:02]}  Kxf3 {[%clk 0:00:55]} 38. Kg1 {[%clk 0:00:02]}  Kg3 {[%clk 0:00:55]} 0-1


[Site "https://www.chess.com"]

[Event "Titled Tuesday Blitz June 20 Early 2023"]
[White "Brown, Raehanna"]
[Black "Novikova, Galina"]
[WhiteFideId "7402740"]
[BlackFideId "4157095"]
[WhiteElo "1655"]
[BlackElo "1953"]
[Result "1/2-1/2"]
[Round "7"]
[TimeControl "180+2"]
[Date "2023.06.20"]
[WhiteClock "0:00:04"]
[BlackClock "0:00:45"]
[Board "160"]

1. c4 {[%clk 0:03:00]}  f5 {[%clk 0:02:59]} 2. Nc3 {[%clk 0:03:00]}  Nf6 {[%clk 0:02:59]} 3. g3 {[%clk 0:03:00]}  e6 {[%clk 0:03:00]} 4. Bg2 {[%clk 0:03:00]}  Be7 {[%clk 0:03:01]} 5. d3 {[%clk 0:03:01]}  O-O {[%clk 0:03:02]} 6. e3 {[%clk 0:03:01]}  d6 {[%clk 0:03:03]} 7. Nge2 {[%clk 0:03:01]}  e5 {[%clk 0:03:03]} 8. O-O {[%clk 0:03:02]}  Nc6 {[%clk 0:03:03]} 9. f4 {[%clk 0:03:02]}  Qe8 {[%clk 0:03:00]} 10. Nd5 {[%clk 0:03:01]}  Bd8 {[%clk 0:02:59]} 11. Nec3 {[%clk 0:03:00]}  Kh8 {[%clk 0:02:56]} 12. b3 {[%clk 0:02:53]}  Nxd5 {[%clk 0:02:52]} 13. Nxd5 {[%clk 0:02:51]}  Ne7 {[%clk 0:02:51]} 14. Qd2 {[%clk 0:02:45]}  c6 {[%clk 0:02:49]} 15. Nxe7 {[%clk 0:02:44]}  Bxe7 {[%clk 0:02:50]} 16. Bb2 {[%clk 0:02:42]}  Bf6 {[%clk 0:02:50]} 17. Rae1 {[%clk 0:02:34]}  a5 {[%clk 0:02:45]} 18. e4 {[%clk 0:02:23]}  fxe4 {[%clk 0:02:43]} 19. fxe5 {[%clk 0:02:15]}  Bxe5 {[%clk 0:02:37]} 20. Bxe5 {[%clk 0:02:09]}  dxe5 {[%clk 0:02:35]} 21. Bxe4 {[%clk 0:02:05]}  Bh3 {[%clk 0:02:33]} 22. Rxf8+ {[%clk 0:01:57]}  Qxf8 {[%clk 0:02:34]} 23. Qg5 {[%clk 0:01:55]}  Qc5+ {[%clk 0:02:32]} 24. Qe3 {[%clk 0:01:32]}  Qd6 {[%clk 0:02:19]} 25. Bg2 {[%clk 0:01:17]}  Bxg2 {[%clk 0:02:19]} 26. Kxg2 {[%clk 0:01:18]}  Re8 {[%clk 0:02:17]} 27. Qe4 {[%clk 0:01:15]}  c5 {[%clk 0:02:09]} 28. Qxb7 {[%clk 0:00:45]}  Qxd3 {[%clk 0:02:08]} 29. Qe4 {[%clk 0:00:45]}  Qd6 {[%clk 0:02:07]} 30. Re3 {[%clk 0:00:42]}  h6 {[%clk 0:02:07]} 31. Rd3 {[%clk 0:00:41]}  Qf6 {[%clk 0:02:07]} 32. Rd5 {[%clk 0:00:39]}  Rf8 {[%clk 0:02:05]} 33. Qe2 {[%clk 0:00:36]}  e4 {[%clk 0:01:51]} 34. Rxc5 {[%clk 0:00:17]}  e3 {[%clk 0:01:46]} 35. Rd5 {[%clk 0:00:16]}  Qc3 {[%clk 0:01:37]} 36. Rd3 {[%clk 0:00:12]}  Rf2+ {[%clk 0:01:30]} 37. Qxf2 {[%clk 0:00:10]}  Qxd3 {[%clk 0:01:30]} 38. Qe1 {[%clk 0:00:09]}  Qd2+ {[%clk 0:01:29]} 39. Kf1 {[%clk 0:00:07]}  Qd3+ {[%clk 0:01:21]} 40. Qe2 {[%clk 0:00:07]}  Qe4 {[%clk 0:01:21]} 41. Kg1 {[%clk 0:00:04]}  Qb1+ {[%clk 0:01:20]} 42. Kg2 {[%clk 0:00:04]}  Qe4+ {[%clk 0:01:20]} 43. Kg1 {[%clk 0:00:04]}  Qd4 {[%clk 0:01:13]} 44. Kg2 {[%clk 0:00:03]}  Kh7 {[%clk 0:01:11]} 45. Kf3 {[%clk 0:00:03]}  h5 {[%clk 0:00:56]} 46. Qxe3 {[%clk 0:00:03]}  Qg4+ {[%clk 0:00:57]} 47. Kf2 {[%clk 0:00:02]}  Qh3 {[%clk 0:00:56]} 48. Qe4+ {[%clk 0:00:03]}  Kh8 {[%clk 0:00:56]} 49. Qg2 {[%clk 0:00:04]}  Qf5+ {[%clk 0:00:56]} 50. Qf3 {[%clk 0:00:04]}  Qc2+ {[%clk 0:00:56]} 51. Qe2 {[%clk 0:00:03]}  Qf5+ {[%clk 0:00:57]} 52. Kg2 {[%clk 0:00:03]}  h4 {[%clk 0:00:56]} 53. h3 {[%clk 0:00:03]}  hxg3 {[%clk 0:00:55]} 54. Qe8+ {[%clk 0:00:03]}  Kh7 {[%clk 0:00:55]} 55. Qe2 {[%clk 0:00:03]}  Qf4 {[%clk 0:00:50]} 56. Qd3+ {[%clk 0:00:03]}  Kh8 {[%clk 0:00:50]} 57. Qe2 {[%clk 0:00:03]}  a4 {[%clk 0:00:48]} 58. Qh5+ {[%clk 0:00:02]}  Kg8 {[%clk 0:00:48]} 59. Qe8+ {[%clk 0:00:03]}  Kh7 {[%clk 0:00:47]} 60. Qh5+ {[%clk 0:00:04]}  Kg8 {[%clk 0:00:48]} 61. Qd5+ {[%clk 0:00:04]}  Kh8 {[%clk 0:00:46]} 62. Qh5+ {[%clk 0:00:04]}  Kg8 {[%clk 0:00:45]} 1/2-1/2


[Site "https://www.chess.com"]

[Event "Titled Tuesday Blitz June 20 Early 2023"]
[White "arenal72"]
[Black "Torres Dominguez, David"]
[BlackFideId "2220857"]
[WhiteElo "2354"]
[BlackElo "1999"]
[Result "1/2-1/2"]
[Round "7"]
[TimeControl "180+2"]
[Date "2023.06.20"]
[WhiteClock "0:01:47"]
[BlackClock "0:00:24"]
[Board "163"]

1. c4 {[%clk 0:03:00]}  e5 {[%clk 0:02:52]} 2. Nc3 {[%clk 0:02:59]}  Nc6 {[%clk 0:02:51]} 3. Nf3 {[%clk 0:02:59]}  f5 {[%clk 0:02:52]} 4. g3 {[%clk 0:02:51]}  Nf6 {[%clk 0:02:50]} 5. Bg2 {[%clk 0:02:50]}  g6 {[%clk 0:02:48]} 6. O-O {[%clk 0:02:48]}  Bg7 {[%clk 0:02:47]} 7. d3 {[%clk 0:02:48]}  O-O {[%clk 0:02:44]} 8. Rb1 {[%clk 0:02:45]}  a5 {[%clk 0:02:42]} 9. a3 {[%clk 0:02:43]}  d6 {[%clk 0:02:37]} 10. b4 {[%clk 0:02:42]}  axb4 {[%clk 0:02:38]} 11. axb4 {[%clk 0:02:43]}  h6 {[%clk 0:02:27]} 12. Nd5 {[%clk 0:02:37]}  Nxd5 {[%clk 0:02:20]} 13. cxd5 {[%clk 0:02:37]}  Ne7 {[%clk 0:02:20]} 14. e4 {[%clk 0:02:37]}  f4 {[%clk 0:02:08]} 15. d4 {[%clk 0:02:23]}  g5 {[%clk 0:02:08]} 16. dxe5 {[%clk 0:02:22]}  dxe5 {[%clk 0:02:02]} 17. Bb2 {[%clk 0:02:21]}  Ng6 {[%clk 0:01:52]} 18. Nd2 {[%clk 0:02:16]}  g4 {[%clk 0:01:48]} 19. f3 {[%clk 0:02:12]}  h5 {[%clk 0:01:48]} 20. fxg4 {[%clk 0:02:06]}  Bxg4 {[%clk 0:01:42]} 21. Bf3 {[%clk 0:02:04]}  Qg5 {[%clk 0:01:37]} 22. Bxg4 {[%clk 0:02:04]}  hxg4 {[%clk 0:01:35]} 23. Bc1 {[%clk 0:02:01]}  fxg3 {[%clk 0:01:31]} 24. hxg3 {[%clk 0:01:56]}  Qe3+ {[%clk 0:01:15]} 25. Kg2 {[%clk 0:01:54]}  Nh4+ {[%clk 0:01:04]} 26. gxh4 {[%clk 0:01:49]}  Qh3+ {[%clk 0:01:00]} 27. Kg1 {[%clk 0:01:49]}  Qg3+ {[%clk 0:00:57]} 28. Kh1 {[%clk 0:01:48]}  Qxh4+ {[%clk 0:00:55]} 29. Kg1 {[%clk 0:01:49]}  Qg3+ {[%clk 0:00:39]} 30. Kh1 {[%clk 0:01:48]}  Qh3+ {[%clk 0:00:38]} 31. Kg1 {[%clk 0:01:48]}  Qg3+ {[%clk 0:00:25]} 32. Kh1 {[%clk 0:01:47]}  Qh3+ {[%clk 0:00:24]} 33. Kg1 {[%clk 0:01:47]}  Qg3+ {[%clk 0:00:24]} 1/2-1/2


[Site "https://www.chess.com"]

[Event "Titled Tuesday Blitz June 20 Early 2023"]
[White "Baruch, Liam"]
[Black "Silva Lucena, Cristian"]
[WhiteFideId "14322064"]
[BlackFideId "2232588"]
[WhiteElo "2119"]
[BlackElo "2223"]
[Result "1-0"]
[Round "7"]
[TimeControl "180+2"]
[Date "2023.06.20"]
[WhiteClock "0:01:18"]
[BlackClock "0:00:31"]
[Board "169"]

1. e4 {[%clk 0:03:00]}  g6 {[%clk 0:02:37]} 2. d4 {[%clk 0:03:00]}  Bg7 {[%clk 0:02:37]} 3. Be3 {[%clk 0:03:00]}  c6 {[%clk 0:02:38]} 4. Qd2 {[%clk 0:03:00]}  d5 {[%clk 0:02:38]} 5. Nc3 {[%clk 0:03:00]}  Nf6 {[%clk 0:02:38]} 6. e5 {[%clk 0:03:00]}  Ne4 {[%clk 0:02:37]} 7. Nxe4 {[%clk 0:03:00]}  dxe4 {[%clk 0:02:38]} 8. Bc4 {[%clk 0:02:58]}  O-O {[%clk 0:02:34]} 9. Ne2 {[%clk 0:02:56]}  b5 {[%clk 0:02:28]} 10. Bb3 {[%clk 0:02:55]}  Kh8 {[%clk 0:02:27]} 11. Ng3 {[%clk 0:02:53]}  f5 {[%clk 0:02:26]} 12. exf6 {[%clk 0:02:52]}  exf6 {[%clk 0:02:27]} 13. Nxe4 {[%clk 0:02:51]}  f5 {[%clk 0:02:27]} 14. Nc5 {[%clk 0:02:45]}  f4 {[%clk 0:02:24]} 15. Bxf4 {[%clk 0:02:45]}  Qxd4 {[%clk 0:01:58]} 16. Nd3 {[%clk 0:02:21]}  Re8+ {[%clk 0:01:44]} 17. Be3 {[%clk 0:02:21]}  Bf5 {[%clk 0:01:33]} 18. O-O {[%clk 0:02:17]}  Qg4 {[%clk 0:01:32]} 19. h3 {[%clk 0:02:09]}  Qh4 {[%clk 0:01:30]} 20. Bg5 {[%clk 0:02:06]}  Qh5 {[%clk 0:01:28]} 21. c3 {[%clk 0:01:44]}  Bxd3 {[%clk 0:01:19]} 22. Bd1 {[%clk 0:01:26]}  Be2 {[%clk 0:01:18]} 23. Bxe2 {[%clk 0:01:21]}  Rxe2 {[%clk 0:00:31]} 24. Qd8+ {[%clk 0:01:18]} 1-0


[Site "https://www.chess.com"]

[Event "Titled Tuesday Blitz June 20 Early 2023"]
[White "Samaganova, Aleksandra"]
[Black "Maluco_do_Natal_00"]
[WhiteFideId "13800221"]
[WhiteElo "1858"]
[BlackElo "2113"]
[Result "1-0"]
[Round "7"]
[TimeControl "180+2"]
[Date "2023.06.20"]
[WhiteClock "0:00:10"]
[BlackClock "0:00:00"]
[Board "171"]

1. c4 {[%clk 0:03:00]}  c5 {[%clk 0:02:58]} 2. Nc3 {[%clk 0:02:55]}  Nc6 {[%clk 0:02:56]} 3. g3 {[%clk 0:02:52]}  g6 {[%clk 0:02:56]} 4. Bg2 {[%clk 0:02:51]}  Bg7 {[%clk 0:02:56]} 5. e3 {[%clk 0:02:51]}  Nf6 {[%clk 0:02:51]} 6. Nge2 {[%clk 0:02:51]}  Rb8 {[%clk 0:02:48]} 7. O-O {[%clk 0:02:51]}  O-O {[%clk 0:02:47]} 8. d4 {[%clk 0:02:51]}  d6 {[%clk 0:02:29]} 9. h3 {[%clk 0:02:48]}  a6 {[%clk 0:02:21]} 10. b3 {[%clk 0:02:37]}  h6 {[%clk 0:02:20]} 11. Bb2 {[%clk 0:02:31]}  Bf5 {[%clk 0:02:02]} 12. g4 {[%clk 0:02:14]}  Bc8 {[%clk 0:01:43]} 13. Qd2 {[%clk 0:02:06]}  h5 {[%clk 0:01:07]} 14. g5 {[%clk 0:02:01]}  Nh7 {[%clk 0:01:06]} 15. h4 {[%clk 0:01:53]}  Re8 {[%clk 0:01:06]} 16. f4 {[%clk 0:01:43]}  Bg4 {[%clk 0:01:03]} 17. d5 {[%clk 0:01:31]}  Na5 {[%clk 0:00:50]} 18. Ng3 {[%clk 0:01:25]}  e6 {[%clk 0:00:45]} 19. e4 {[%clk 0:01:17]}  b5 {[%clk 0:00:42]} 20. cxb5 {[%clk 0:00:58]}  axb5 {[%clk 0:00:39]} 21. f5 {[%clk 0:00:43]}  exf5 {[%clk 0:00:31]} 22. exf5 {[%clk 0:00:41]}  Bd4+ {[%clk 0:00:28]} 23. Kh1 {[%clk 0:00:41]}  Be3 {[%clk 0:00:23]} 24. Qd3 {[%clk 0:00:36]}  c4 {[%clk 0:00:20]} 25. Qc2 {[%clk 0:00:28]}  Kg7 {[%clk 0:00:06]} 26. fxg6 {[%clk 0:00:24]}  fxg6 {[%clk 0:00:04]} 27. Nce4+ {[%clk 0:00:20]}  Kg8 {[%clk 0:00:04]} 28. Nf6+ {[%clk 0:00:17]}  Nxf6 {[%clk 0:00:04]} 29. gxf6 {[%clk 0:00:17]}  Kf7 {[%clk 0:00:02]} 30. Be4 {[%clk 0:00:14]}  Rg8 {[%clk 0:00:00]} 31. Rae1 {[%clk 0:00:10]} 1-0


[Site "https://www.chess.com"]

[Event "Titled Tuesday Blitz June 20 Early 2023"]
[White "Ardila, Oscar Humberto"]
[Black "Cardenas Carbajal, Nilson"]
[WhiteFideId "4404742"]
[BlackFideId "8401128"]
[WhiteElo "1912"]
[BlackElo "1972"]
[Result "1-0"]
[Round "7"]
[TimeControl "180+2"]
[Date "2023.06.20"]
[WhiteClock "0:01:28"]
[BlackClock "0:00:38"]
[Board "172"]

1. d4 {[%clk 0:02:55]}  Nf6 {[%clk 0:02:59]} 2. c4 {[%clk 0:02:55]}  g6 {[%clk 0:02:57]} 3. Nc3 {[%clk 0:02:55]}  d5 {[%clk 0:02:58]} 4. cxd5 {[%clk 0:02:55]}  Nxd5 {[%clk 0:02:56]} 5. e4 {[%clk 0:02:55]}  Nxc3 {[%clk 0:02:56]} 6. bxc3 {[%clk 0:02:56]}  Bg7 {[%clk 0:02:55]} 7. Bc4 {[%clk 0:02:55]}  c5 {[%clk 0:02:54]} 8. Ne2 {[%clk 0:02:55]}  Nc6 {[%clk 0:02:54]} 9. Be3 {[%clk 0:02:55]}  O-O {[%clk 0:02:52]} 10. O-O {[%clk 0:02:55]}  Bg4 {[%clk 0:02:53]} 11. f3 {[%clk 0:02:55]}  Na5 {[%clk 0:02:52]} 12. Bd3 {[%clk 0:02:55]}  cxd4 {[%clk 0:02:49]} 13. cxd4 {[%clk 0:02:55]}  Be6 {[%clk 0:02:49]} 14. d5 {[%clk 0:02:56]}  Bxa1 {[%clk 0:02:48]} 15. Qxa1 {[%clk 0:02:56]}  f6 {[%clk 0:02:46]} 16. Bh6 {[%clk 0:02:56]}  Re8 {[%clk 0:02:47]} 17. Kh1 {[%clk 0:02:56]}  Bd7 {[%clk 0:02:43]} 18. e5 {[%clk 0:02:52]}  Rc8 {[%clk 0:02:24]} 19. Nf4 {[%clk 0:02:51]}  Nc4 {[%clk 0:02:15]} 20. e6 {[%clk 0:02:47]}  Bb5 {[%clk 0:02:09]} 21. Nxg6 {[%clk 0:02:44]}  hxg6 {[%clk 0:02:04]} 22. Bxg6 {[%clk 0:02:44]}  Ne5 {[%clk 0:02:04]} 23. Bxe8 {[%clk 0:02:36]}  Qxe8 {[%clk 0:02:00]} 24. Re1 {[%clk 0:02:33]}  Qg6 {[%clk 0:01:46]} 25. Be3 {[%clk 0:02:18]}  Rc2 {[%clk 0:01:43]} 26. Rg1 {[%clk 0:02:16]}  Be2 {[%clk 0:01:37]} 27. f4 {[%clk 0:02:09]}  Nf3 {[%clk 0:01:33]} 28. d6 {[%clk 0:02:04]}  Qh5 {[%clk 0:01:21]} 29. h3 {[%clk 0:02:02]}  Bb5 {[%clk 0:00:56]} 30. d7 {[%clk 0:01:41]}  Qxh3+ {[%clk 0:00:54]} 31. gxh3+ {[%clk 0:01:29]}  Kh8 {[%clk 0:00:38]} 32. d8=Q+ {[%clk 0:01:28]} 1-0


[Site "https://www.chess.com"]

[Event "Titled Tuesday Blitz June 20 Early 2023"]
[White "Castillo Pena, Patricia Evarista"]
[Black "Sarkar, Justin"]
[WhiteFideId "6412106"]
[BlackFideId "2010011"]
[WhiteElo "1859"]
[BlackElo "2151"]
[Result "0-1"]
[Round "7"]
[TimeControl "180+2"]
[Date "2023.06.20"]
[WhiteClock "0:00:22"]
[BlackClock "0:00:08"]
[Board "174"]

1. d4 {[%clk 0:03:00]}  Nf6 {[%clk 0:02:54]} 2. Nf3 {[%clk 0:02:59]}  d5 {[%clk 0:02:51]} 3. e3 {[%clk 0:02:59]}  Bg4 {[%clk 0:02:28]} 4. c4 {[%clk 0:02:57]}  e6 {[%clk 0:02:21]} 5. Qb3 {[%clk 0:02:56]}  Nc6 {[%clk 0:02:13]} 6. Nbd2 {[%clk 0:02:46]}  a6 {[%clk 0:01:57]} 7. c5 {[%clk 0:02:45]}  Qc8 {[%clk 0:01:42]} 8. Bd3 {[%clk 0:02:33]}  Be7 {[%clk 0:01:37]} 9. h3 {[%clk 0:02:32]}  Bh5 {[%clk 0:01:32]} 10. a3 {[%clk 0:02:32]}  O-O {[%clk 0:01:30]} 11. O-O {[%clk 0:02:31]}  Re8 {[%clk 0:01:14]} 12. Qc2 {[%clk 0:02:30]}  Bg6 {[%clk 0:01:07]} 13. Bxg6 {[%clk 0:02:29]}  hxg6 {[%clk 0:01:07]} 14. b4 {[%clk 0:02:28]}  Nd7 {[%clk 0:01:01]} 15. Bb2 {[%clk 0:02:24]}  Bf6 {[%clk 0:00:51]} 16. e4 {[%clk 0:02:14]}  dxe4 {[%clk 0:00:37]} 17. Nxe4 {[%clk 0:02:13]}  Be7 {[%clk 0:00:36]} 18. Rfd1 {[%clk 0:02:08]}  Nf6 {[%clk 0:00:36]} 19. Rac1 {[%clk 0:02:01]}  Nxe4 {[%clk 0:00:33]} 20. Qxe4 {[%clk 0:02:01]}  Bf6 {[%clk 0:00:33]} 21. Ne5 {[%clk 0:01:59]}  Bxe5 {[%clk 0:00:23]} 22. dxe5 {[%clk 0:01:59]}  Ne7 {[%clk 0:00:23]} 23. Qc4 {[%clk 0:01:41]}  Rd8 {[%clk 0:00:22]} 24. a4 {[%clk 0:01:36]}  Rxd1+ {[%clk 0:00:18]} 25. Rxd1 {[%clk 0:01:36]}  Qe8 {[%clk 0:00:16]} 26. b5 {[%clk 0:01:31]}  axb5 {[%clk 0:00:15]} 27. axb5 {[%clk 0:01:31]}  Nd5 {[%clk 0:00:15]} 28. Bd4 {[%clk 0:01:16]}  Ra5 {[%clk 0:00:13]} 29. Rb1 {[%clk 0:01:13]}  Qa8 {[%clk 0:00:13]} 30. c6 {[%clk 0:01:03]}  b6 {[%clk 0:00:12]} 31. Qe2 {[%clk 0:00:49]}  Ra4 {[%clk 0:00:11]} 32. Be3 {[%clk 0:00:22]}  Nc3 {[%clk 0:00:08]} 0-1


[Site "https://www.chess.com"]